fUSD/lending_fUSD_20240502
["ID","MTS","AMOUNT","RATE_DAILY","PERIOD"]
[325284653,1714681862751,-500.0,0.0003041,2]
[325284654,1714681862761,-500.0,0.0003041,2]
[325284655,1714681862771,-665.85,0.0003041,2]
[325284656,1714681862780,-1820.79,0.0003041,2]
[325284657,1714681862789,-705.23,0.0003041,2]
[325284658,1714681862799,-567.84,0.0003041,2]
[325284659,1714681862808,-500.0,0.0003041,2]
[325284660,1714681862818,-500.0,0.0003041,2]
[325284661,1714681862827,-1231.73,0.0003041,2]
[325284662,1714681862837,-2731.6,0.0003041,2]
[325284663,1714681862847,-1199.56,0.0003041,2]
[325284664,1714681862860,-500.0,0.0003041,2]
[325284665,1714681862870,-500.0,0.0003041,2]
[325284666,1714681862880,-1106.26,0.0003041,2]
[325284667,1714681862890,-3381.03,0.0003041,2]
[325284668,1714681862900,-2850.76,0.0003041,2]
[325284669,1714681862909,-500.0,0.0003041,2]
[325284670,1714681862918,-500.0,0.0003041,2]
[325284671,1714681862928,-500.0,0.0003041,2]
[325284672,1714681862937,-2495.95,0.0003041,2]
[325284673,1714681862947,-1687.52,0.0003041,2]
[325284674,1714681862955,-500.0,0.0003041,2]
[325284675,1714681862965,-45074.22,0.0003041,2]
[325284676,1714681862975,-2424.92,0.0003041,2]
[325284677,1714681862984,-807.09,0.0003041,2]
[325284678,1714681862993,-500.0,0.0003041,2]
[325284679,1714681863003,-839.03,0.0003041,2]
[325284680,1714681863012,-2093.21,0.0003041,2]
[325284681,1714681863022,-1346.03,0.0003041,2]
[325284682,1714681863031,-504.4,0.0003041,2]
[325284683,1714681863040,-1199.24,0.0003041,2]
[325284684,1714681863050,-886.13,0.0003041,2]
[325284685,1714681863059,-500.0,0.0003041,2]
[325284686,1714681863068,-8317.35,0.0003041,2]
[325284687,1714681863078,-500.0,0.0003041,2]
[325284688,1714681863087,-2084.29,0.0003041,2]
[325284689,1714681863096,-500.0,0.0003041,2]
[325284690,1714681863107,-591.52,0.0003041,2]
[325284691,1714681863116,-634.97,0.0003041,2]
[325284692,1714681863125,-500.0,0.0003041,2]
[325284693,1714681863135,-500.0,0.0003041,2]
[325284694,1714681863144,-500.0,0.0003041,2]
[325284695,1714681863153,-503.13,0.0003041,2]
[325284696,1714681863163,-761.55,0.0003041,2]
[325284697,1714681863172,-500.0,0.0003041,2]
[325284698,1714681863181,-7852.58,0.0003041,2]
[325284699,1714681863191,-942.64,0.0003041,2]
[325284700,1714681863200,-1096.47,0.0003041,2]
[325284701,1714681863210,-1033.18,0.0003041,2]
[325284702,1714681863219,-3943.59,0.0003041,2]
[325284703,1714681863230,-1086.98,0.0003041,2]
[325284704,1714681863240,-743.51,0.0003041,2]
[325284705,1714681863250,-670.97,0.0003041,2]
[325284706,1714681863259,-10041.45,0.0003041,2]
[325284707,1714681863269,-500.0,0.0003041,2]
[325284708,1714681863279,-957.98,0.0003041,2]
[325284709,1714681863288,-500.0,0.0003041,2]
[325284710,1714681863298,-500.0,0.0003041,2]
[325284711,1714681863307,-1248.49,0.0003041,2]
[325284712,1714681863316,-1104.87,0.0003041,2]
[325284713,1714681863326,-500.0,0.0003041,2]
[325284714,1714681863335,-1447.63,0.0003041,2]
[325284715,1714681863344,-2882.26,0.0003041,2]
[325284716,1714681863356,-1315.59,0.0003041,2]
[325284717,1714681863365,-621.52,0.0003041,2]
[325284718,1714681863375,-6170.13,0.0003041,2]
[325284719,1714681863384,-624.98,0.0003041,2]
[325284720,1714681863393,-5408.71,0.0003041,2]
[325284721,1714681863403,-500.0,0.0003041,2]
[325284722,1714681863413,-500.0,0.0003041,2]
[325284723,1714681863422,-886.47,0.0003041,2]
[325284724,1714681863433,-1889.47,0.0003041,2]
[325284725,1714681863449,-500.0,0.0003041,2]
[325284726,1714681863459,-500.0,0.0003041,2]
[325284727,1714681863469,-2241.16,0.0003041,2]
[325284728,1714681863479,-500.0,0.0003041,2]
[325284729,1714681863492,-16696.29,0.0003041,2]
[325284730,1714681863502,-500.0,0.0003041,2]
[325284731,1714681863511,-864.0,0.0003041,2]
[325284732,1714681863522,-2391.69,0.0003041,2]
[325284733,1714681863533,-500.0,0.0003041,2]
[325284734,1714681863542,-1405.7,0.0003041,2]
[325284735,1714681863552,-500.0,0.0003041,2]
[325284736,1714681863562,-12717.01,0.0003041,2]
[325284737,1714681863571,-500.0,0.0003041,2]
[325284738,1714681863581,-500.0,0.0003041,2]
[325284739,1714681863591,-930.73,0.0003041,2]
[325284740,1714681863602,-3478.78,0.0003041,2]
[325284741,1714681863611,-2984.22,0.0003041,2]
[325284742,1714681863621,-457.29121417,0.0003041,2]
[325284743,1714681863630,-1474.56,0.0003041,2]
[325284744,1714681863639,-3152.5,0.0003041,2]
[325284745,1714681863649,-1153.79,0.0003041,2]
[325284746,1714681863658,-2984.38,0.0003041,2]
[325284747,1714681863668,-4613.08,0.0003041,2]
[325284748,1714681863677,-11153.98,0.0003041,2]
[325284749,1714681863687,-500.0,0.0003041,2]
[325284750,1714681863696,-500.0,0.0003041,120]
[325284751,1714681863706,-1355.56,0.0003041,2]
[325284752,1714681863715,-6121.22,0.0003041,2]
[325284753,1714681863726,-503.65737351,0.0003041,2]
[325284754,1714681863737,-931.07,0.0003041,2]
[325284755,1714681863748,-1592.65,0.0003041,2]
[325284756,1714681863757,-1764.06,0.0003041,2]
[325284757,1714681863768,-500.0,0.0003041,2]
[325284758,1714681863777,-56665.22,0.0003041,2]
[325284759,1714681863787,-500.0,0.0003041,2]
[325284760,1714681863796,-2027.18,0.0003041,2]
[325284761,1714681863806,-500.0,0.0003041,2]
[325284762,1714681863816,-1644.34,0.0003041,2]
[325284763,1714681863825,-816.89,0.0003041,2]
[325284764,1714681863835,-1305.28,0.0003041,2]
[325284765,1714681863844,-500.0,0.0003041,2]
[325284766,1714681863854,-724.92,0.0003041,2]
[325284767,1714681863863,-1000.64,0.0003041,2]
[325284768,1714681863873,-500.0,0.0003041,2]
[325284769,1714681863882,-2579.81,0.0003041,2]
[325284770,1714681863891,-500.0,0.0003041,2]
[325284771,1714681863900,-500.0,0.0003041,2]
[325284772,1714681863909,-19488.0,0.0003041,2]
[325284773,1714681863919,-500.0,0.0003041,2]
[325284774,1714681863928,-2353.8,0.0003041,2]
[325284775,1714681863937,-3407.69,0.0003041,2]
[325284776,1714681863947,-500.0,0.0003041,2]
[325284777,1714681863956,-1445.63,0.0003041,2]
[325284778,1714681863965,-2730.1,0.0003041,2]
[325284779,1714681863974,-500.0,0.0003041,2]
[325284780,1714681863984,-1326.95,0.0003041,2]
[325284781,1714681863994,-3684.46,0.0003041,2]
[325284782,1714681864003,-1407.38,0.0003041,2]
[325284783,1714681864014,-2950.3,0.0003041,2]
[325284784,1714681864025,-500.0,0.0003041,2]
[325284785,1714681864036,-6635.61,0.0003041,2]
[325284786,1714681864045,-500.0,0.0003041,2]
[325284787,1714681864054,-1389.62,0.0003041,2]
[325284788,1714681864064,-832.11,0.0003041,2]
[325284789,1714681864073,-4775.38,0.0003041,2]
[325284790,1714681864082,-500.0,0.0003041,2]
[325284791,1714681864091,-500.0,0.0003041,2]
[325284792,1714681864100,-500.0,0.0003041,2]
[325284793,1714681864110,-500.0,0.0003041,2]
[325284794,1714681864119,-3939.2,0.0003041,2]
[325284795,1714681864129,-3783.87,0.0003041,2]
[325284796,1714681864139,-2404.14,0.0003041,2]
[325284797,1714681864148,-21870.94,0.0003041,2]
[325284798,1714681864157,-2729.07,0.0003041,2]
[325284799,1714681864167,-19516.19,0.0003041,2]
[325284800,1714681864176,-869.4,0.0003041,2]
[325284801,1714681864185,-500.0,0.0003041,2]
[325284802,1714681864194,-517.34,0.0003041,2]
[325284803,1714681864204,-2624.47,0.0003041,2]
[325284804,1714681864213,-500.0,0.0003041,2]
[325284805,1714681864222,-505.29557456,0.0003041,2]
[325284806,1714681864232,-500.0,0.0003041,2]
[325284807,1714681864242,-1243.99,0.0003041,2]
[325284808,1714681864252,-500.0,0.0003041,2]
[325284809,1714681864261,-500.0,0.0003041,2]
[325284810,1714681864271,-5145.48,0.0003041,2]
[325284811,1714681864280,-2123.66,0.0003041,2]
[325284812,1714681864289,-3200.75,0.0003041,2]
[325284813,1714681864299,-3686.18,0.0003041,2]
[325284814,1714681864307,-602.64,0.0003041,2]
[325284815,1714681864317,-500.0,0.0003041,2]
[325284816,1714681864326,-7419.83,0.0003041,2]
[325284817,1714681864335,-500.0,0.0003041,2]
[325284818,1714681864345,-500.0,0.0003041,2]
[325284819,1714681864355,-12525.99,0.0003041,2]
[325284820,1714681864365,-530.03,0.0003041,2]
[325284821,1714681864373,-3637.96,0.0003041,2]
[325284822,1714681864382,-1681.11,0.0003041,2]
[325284823,1714681864392,-500.0,0.0003041,2]
[325284824,1714681864401,-14442.19,0.0003041,2]
[325284825,1714681864411,-2388.09,0.0003041,2]
[325284826,1714681864421,-500.0,0.0003041,2]
[325284827,1714681864431,-1534.31,0.0003041,2]
[325284828,1714681864444,-3598.38,0.0003041,2]
[325284829,1714681864453,-3171.68,0.0003041,2]
[325284830,1714681864463,-990.57,0.0003041,2]
[325284831,1714681864471,-1400.03,0.0003041,2]
[325284832,1714681864482,-633.22,0.0003041,2]
[325284833,1714681864491,-500.0,0.0003041,2]
[325284834,1714681864501,-1177.76,0.0003041,2]
[325284835,1714681864511,-3979.26,0.0003041,2]
[325284836,1714681864520,-770.74,0.0003041,2]
[325284837,1714681864529,-4142.48,0.0003041,2]
[325284838,1714681864539,-525.65,0.0003041,2]
[325284839,1714681864548,-2078.63,0.0003041,2]
[325284840,1714681864558,-794.4,0.0003041,2]
[325284841,1714681864567,-2926.57,0.0003041,2]
[325284842,1714681864576,-5474.38,0.0003041,2]
[325284843,1714681864585,-500.0,0.0003041,2]
[325284844,1714681864595,-500.0,0.0003041,2]
[325284845,1714681864605,-2160.8,0.0003041,2]
[325284846,1714681864614,-813.35,0.0003041,2]
[325284847,1714681864624,-6746.41,0.0003041,2]
[325284848,1714681864633,-544.34260394,0.0003041,2]
[325284849,1714681864642,-11817.94,0.0003041,2]
[325284850,1714681864652,-500.0,0.0003041,2]
[325284851,1714681864661,-1979.43,0.0003041,2]
[325284852,1714681864670,-1422.58,0.0003041,2]
[325284853,1714681864679,-1207.73,0.0003041,2]
[325284854,1714681864689,-2847.05,0.0003041,2]
[325284855,1714681864698,-500.0,0.0003041,2]
[325284856,1714681864707,-3125.77,0.0003041,2]
[325284857,1714681864716,-2615.16,0.0003041,2]
[325284858,1714681864726,-500.0,0.0003041,2]
[325284859,1714681864736,-3144.37,0.0003041,2]
[325284860,1714681864745,-2006.13,0.0003041,2]
[325284861,1714681864755,-1235.85,0.0003041,2]
[325284862,1714681864765,-6324.12,0.0003041,2]
[325284863,1714681864774,-500.0,0.0003041,2]
[325284864,1714681864784,-602.03,0.0003041,2]
[325284865,1714681864793,-567.41,0.0003041,2]
[325284866,1714681864803,-1040.65,0.0003041,2]
[325284867,1714681864812,-1004.63,0.0003041,2]
[325284868,1714681865104,-11567.64,0.0003041,2]
[325284869,1714681865129,-2024.67,0.0003041,2]
[325284870,1714681865139,-616.99,0.0003041,2]
[325284871,1714681865148,-1808.86,0.0003041,2]
[325284872,1714681865158,-924.46,0.0003041,2]
[325284873,1714681865168,-6672.78,0.0003041,2]
[325284874,1714681865177,-503.31770367,0.0003041,2]
[325284875,1714681865186,-4278.97,0.0003041,2]
[325284876,1714681865196,-1002.68,0.0003041,2]
[325284877,1714681865205,-500.0,0.0003041,2]
[325284878,1714681865215,-1409.27,0.0003041,2]
[325284879,1714681865224,-500.0,0.0003041,2]
[325284880,1714681865236,-500.0,0.0003041,2]
[325284881,1714681865246,-1151.27,0.0003041,2]
[325284882,1714681865256,-1870.41,0.0003041,2]
[325284883,1714681865266,-1236.16,0.0003041,2]
[325284884,1714681865275,-46463.02,0.0003041,2]
[325284885,1714681865284,-5613.43,0.0003041,2]
[325284886,1714681865294,-500.0,0.0003041,2]
[325284887,1714681865304,-1259.51,0.0003041,2]
[325284888,1714681865313,-528.27,0.0003041,2]
[325284889,1714681865323,-6011.21,0.0003041,2]
[325284890,1714681865333,-2018.75,0.0003041,2]
[325284891,1714681865343,-8499.02,0.0003041,2]
[325284892,1714681865353,-2522.13,0.0003041,2]
[325284893,1714681865363,-1737.86,0.0003041,2]
[325284894,1714681865372,-500.0,0.0003041,2]
[325284895,1714681865382,-500.0,0.0003041,2]
[325284896,1714681865392,-1824.17,0.0003041,2]
[325284897,1714681865402,-500.0,0.0003041,2]
[325284898,1714681865411,-4871.89,0.0003041,2]
[325284899,1714681865421,-1718.36,0.0003041,2]
[325284900,1714681865431,-696.34,0.0003041,2]
[325284901,1714681865444,-500.0,0.0003041,2]
[325284902,1714681865454,-2020.24,0.0003041,2]
[325284903,1714681865464,-2212.66,0.0003041,2]
[325284904,1714681865475,-787.34,0.0003041,2]
[325284905,1714681865484,-677.19,0.0003041,2]
[325284906,1714681865494,-500.0,0.0003041,2]
[325284907,1714681865504,-500.0,0.0003041,2]
[325284908,1714681865513,-6979.64,0.0003041,2]
[325284909,1714681865525,-750.16,0.0003041,2]
[325284910,1714681865535,-500.0,0.0003041,2]
[325284911,1714681865545,-500.0,0.0003041,2]
[325284912,1714681865554,-897.74,0.0003041,2]
[325284913,1714681865564,-500.0,0.0003041,2]
[325284914,1714681865573,-500.0,0.0003041,2]
[325284915,1714681865583,-9738.48,0.0003041,2]
[325284916,1714681865592,-1068.13,0.0003041,2]
[325284917,1714681865603,-2839.9,0.0003041,2]
[325284918,1714681865612,-2937.27,0.0003041,2]
[325284919,1714681865622,-1572.27,0.0003041,2]
[325284920,1714681865632,-1426.15,0.0003041,2]
[325284921,1714681865641,-500.0,0.0003041,2]
[325284922,1714681865651,-1820.59,0.0003041,2]
[325284923,1714681865661,-500.0,0.0003041,2]
[325284924,1714681865670,-500.0,0.0003041,2]
[325284925,1714681865680,-9459.31,0.0003041,2]
[325284926,1714681865689,-1155.68,0.0003041,2]
[325284927,1714681865699,-500.0,0.0003041,2]
[325284928,1714681865709,-500.0,0.0003041,2]
[325284929,1714681865719,-10251.1,0.0003041,2]
[325284930,1714681865729,-2623.56,0.0003041,2]
[325284931,1714681865739,-500.0,0.0003041,2]
[325284932,1714681865749,-5611.28,0.0003041,2]
[325284933,1714681865759,-677.06,0.0003041,2]
[325284934,1714681865771,-1091.94,0.0003041,2]
[325284935,1714681865780,-4112.73,0.0003041,2]
[325284936,1714681865790,-855.52,0.0003041,2]
[325284937,1714681865799,-1940.15,0.0003041,2]
[325284938,1714681865809,-816.17,0.0003041,2]
[325284939,1714681865819,-1320.92,0.0003041,2]
[325284940,1714681865829,-725.07,0.0003041,2]
[325284941,1714681865838,-500.0,0.0003041,2]
[325284942,1714681865848,-837.26,0.0003041,2]
[325284943,1714681865858,-500.0,0.0003041,2]
[325284944,1714681865867,-500.0,0.0003041,2]
[325284945,1714681865877,-593.27,0.0003041,2]
[325284946,1714681865886,-500.0,0.0003041,2]
[325284947,1714681865896,-739.06,0.0003041,2]
[325284948,1714681865906,-12161.39,0.0003041,2]
[325284949,1714681865915,-516.62,0.0003041,2]
[325284950,1714681865925,-2265.72,0.0003041,2]
[325284951,1714681865935,-2341.96,0.0003041,2]
[325284952,1714681865945,-708.57,0.0003041,2]
[325284953,1714681865954,-3562.89,0.0003041,2]
[325284954,1714681865963,-301.7,0.0003048,2]
[325284955,1714681865973,-200.0,0.00030482,2]
[325284956,1714681865983,-1000.0,0.00030482,10]
[325284957,1714681865993,-500.0,0.00030482,2]
[325284958,1714681866003,-200.0,0.00030482,2]
[325284959,1714681866012,-11915.137586,0.000305,2]
[325284960,1714681866022,-19590.52454467,0.000305,7]
[325284961,1714681866032,-352.0,0.000305,2]
[325284962,1714681866042,-1000.0,0.000305,2]
[325284963,1714681866051,-223.0,0.000305,2]
[325284964,1714681866061,-1000.0,0.000305,2]
[325284965,1714681866071,-150.0,0.000305,2]
[325284966,1714681866081,-1261.14951651,0.00030535,2]
[325284967,1714681866091,-170.014,0.00030545,2]
[325284968,1714681866101,-200.0,0.00030571,2]
[325284969,1714681866111,-3637.78165833,0.00030655,2]
[325284970,1714681866120,-2766.36,0.0003066,4]
[325284971,1714681866131,-200.0,0.00030661,2]
[325284972,1714681866140,-4062.7311388,0.00030679,2]
[325284973,1714681866150,-336.79075402,0.00030679,2]
[325284974,1714681866160,-8995.9278066,0.00030679,2]
[325284975,1714681866170,-5776.2426134,0.00030679,2]
[325284976,1714681866179,-10836.9949199,0.00030679,2]
[325284977,1714681866189,-3035.2949504,0.00030679,2]
[325284978,1714681866199,-5000.0,0.00030682,4]
[325284979,1714681866209,-268.25676551,0.00030682,4]
[325284980,1714681866218,-205.09669917,0.00030683,2]
[325284981,1714681866228,-474.28034199,0.00030683,2]
[325284982,1714681866238,-2766.36,0.00030683,4]
[325284983,1714681866248,-2766.36,0.00030683,4]
[325284984,1714681866258,-2766.36,0.00030683,4]
[325284985,1714681866269,-2766.36,0.00030683,4]
[325284986,1714681866279,-1879.25,0.00030683,2]
[325284987,1714681866289,-1879.25,0.00030683,2]
[325284988,1714681866298,-1879.25,0.00030683,2]
[325284989,1714681866308,-1879.25,0.00030683,2]
[325284990,1714681866318,-1879.25,0.00030683,2]
[325284991,1714681866328,-2314.58,0.00030683,4]
[325284992,1714681866339,-2314.58,0.00030683,4]
[325284993,1714681866348,-2314.58,0.00030683,4]
[325284994,1714681866360,-2314.58,0.00030683,4]
[325284995,1714681866371,-2314.58,0.00030683,4]
[325284996,1714681866381,-2314.58,0.00030683,4]
[325284997,1714681866391,-309.86429829,0.00030684,2]
[325284998,1714681866401,-380.7669546,0.00030684,2]
[325284999,1714681866410,-598.86125346,0.00030684,2]
[325285000,1714681866420,-520.26264804,0.00030684,2]
[325285001,1714681866430,-500.0,0.00030684,2]
[325285002,1714681866441,-500.0,0.00030684,2]
[325285003,1714681866451,-500.0,0.00030684,2]
[325285004,1714681866460,-500.0,0.00030684,2]
[325285005,1714681866469,-500.0,0.00030684,2]
[325285006,1714681866478,-500.0,0.00030684,2]
[325285007,1714681866488,-500.0,0.00030684,2]
[325285008,1714681866498,-500.0,0.00030684,2]
[325285009,1714681866508,-641.91,0.00030684,2]
[325285010,1714681866520,-746.97,0.00030684,2]
[325285011,1714681866531,-1639.53,0.00030684,2]
[325285012,1714681866540,-500.0,0.00030684,2]
[325285013,1714681866550,-827.05,0.00030684,2]
[325285014,1714681866560,-693.36,0.00030684,2]
[325285015,1714681866570,-500.0,0.00030684,2]
[325285016,1714681866580,-500.0,0.00030684,2]
[325285017,1714681866590,-500.0,0.00030684,2]
[325285018,1714681866600,-513.55,0.00030684,2]
[325285019,1714681866612,-530.93,0.00030684,2]
[325285020,1714681866622,-831.2,0.00030684,2]
[325285021,1714681866632,-500.0,0.00030684,2]
[325285022,1714681866641,-308.7354429,0.00030684,2]
[325285023,1714681866651,-500.0,0.00030684,2]
[325285024,1714681866661,-799.44,0.00030684,2]
[325285025,1714681866671,-500.0,0.00030684,2]
[325285026,1714681866680,-974.16,0.00030684,2]
[325285027,1714681866690,-500.0,0.00030684,2]
[325285028,1714681866701,-500.0,0.00030684,2]
[325285029,1714681866710,-500.0,0.00030684,2]
[325285030,1714681866720,-500.0,0.00030684,2]
[325285031,1714681866730,-675.92,0.00030684,2]
[325285032,1714681866740,-735.97,0.00030684,2]
[325285033,1714681866750,-500.0,0.00030684,2]
[325285034,1714681866760,-500.0,0.00030684,2]
[325285035,1714681866770,-500.0,0.00030684,2]
[325285036,1714681866780,-500.0,0.00030684,2]
[325285037,1714681866790,-500.0,0.00030684,2]
[325285038,1714681866800,-500.0,0.00030684,2]
[325285039,1714681866810,-500.0,0.00030684,2]
[325285040,1714681866820,-500.0,0.00030684,2]
[325285041,1714681866830,-500.0,0.00030684,2]
[325285042,1714681866839,-281.21732677,0.00030684,2]
[325285043,1714681866849,-905.5,0.00030684,2]
[325285044,1714681866860,-500.0,0.00030684,2]
[325285045,1714681866870,-500.0,0.00030684,2]
[325285046,1714681866880,-500.0,0.00030684,2]
[325285047,1714681866890,-500.0,0.00030684,2]
[325285048,1714681866900,-500.0,0.00030684,2]
[325285049,1714681866909,-500.0,0.00030684,2]
[325285050,1714681866919,-500.0,0.00030684,2]
[325285051,1714681866928,-500.0,0.00030684,2]
[325285052,1714681866938,-731.49,0.00030684,2]
[325285053,1714681866948,-500.0,0.00030684,2]
[325285054,1714681866957,-696.24,0.00030684,2]
[325285055,1714681866967,-500.0,0.00030684,2]
[325285056,1714681866976,-534.67984672,0.00030684,2]
[325285057,1714681866986,-506.44,0.00030684,2]
[325285058,1714681866996,-500.0,0.00030684,2]
[325285059,1714681867006,-954.0,0.00030684,2]
[325285060,1714681867015,-500.0,0.00030684,2]
[325285061,1714681867024,-500.0,0.00030684,2]
[325285062,1714681867034,-500.0,0.00030684,2]
[325285063,1714681867044,-500.0,0.00030684,2]
[325285064,1714681867053,-500.0,0.00030684,2]
[325285065,1714681867063,-593.47,0.00030684,2]
[325285066,1714681867073,-500.0,0.00030684,2]
[325285067,1714681867083,-500.0,0.00030684,2]
[325285068,1714681867092,-500.0,0.00030684,2]
[325285069,1714681867102,-500.0,0.00030684,2]
[325285070,1714681867111,-500.0,0.00030684,2]
[325285071,1714681867120,-500.0,0.00030684,2]
[325285072,1714681867130,-500.0,0.00030684,2]
[325285073,1714681867140,-500.0,0.00030684,2]
[325285074,1714681867149,-584.72239721,0.00030684,2]
[325285075,1714681867159,-500.0,0.00030684,2]
[325285076,1714681867169,-500.0,0.00030684,2]
[325285077,1714681867178,-500.0,0.00030684,2]
[325285078,1714681867188,-515.62,0.00030684,2]
[325285079,1714681867197,-693.85,0.00030684,2]
[325285080,1714681867207,-500.0,0.00030684,2]
[325285081,1714681867216,-712.22,0.00030684,2]
[325285082,1714681867226,-698.86,0.00030684,2]
[325285083,1714681867238,-500.0,0.00030684,2]
[325285084,1714681867249,-578.79,0.00030684,2]
[325285085,1714681867259,-640.88,0.00030684,2]
[325285086,1714681867270,-413.74089269,0.00030684,2]
[325285087,1714681867279,-500.0,0.00030684,2]
[325285088,1714681867288,-500.0,0.00030684,2]
[325285089,1714681867298,-500.0,0.00030684,2]
[325285090,1714681867308,-576.39031222,0.00030684,2]
[325285091,1714681867318,-856.99,0.00030684,2]
[325285092,1714681867328,-500.0,0.00030684,2]
[325285093,1714681867337,-500.0,0.00030684,2]
[325285094,1714681867347,-503.14,0.00030684,2]
[325285095,1714681867357,-500.0,0.00030684,2]
[325285096,1714681867367,-368.02978435,0.00030684,2]
[325285097,1714681867377,-500.0,0.00030684,2]
[325285098,1714681867387,-500.0,0.00030684,2]
[325285099,1714681867397,-552.82,0.00030684,2]
[325285100,1714681867408,-500.0,0.00030684,2]
[325285101,1714681867418,-500.0,0.00030684,2]
[325285102,1714681867429,-640.81,0.00030684,2]
[325285103,1714681867442,-1021.89,0.00030684,2]
[325285104,1714681867452,-500.0,0.00030684,2]
[325285105,1714681867462,-988.02,0.00030684,2]
[325285106,1714681867472,-515.27353206,0.00030684,2]
[325285107,1714681867483,-280.43614313,0.00030684,2]
[325285108,1714681867494,-500.0,0.00030684,2]
[325285109,1714681867503,-517.04,0.00030684,2]
[325285110,1714681867593,-500.0,0.00030684,2]
[325285111,1714681867603,-500.0,0.00030684,2]
[325285112,1714681867613,-500.0,0.00030684,2]
[325285113,1714681867623,-817.04,0.00030684,2]
[325285114,1714681867632,-500.0,0.00030684,2]
[325285115,1714681867642,-802.56,0.00030684,2]
[325285116,1714681867651,-500.0,0.00030684,2]
[325285117,1714681867661,-533.62,0.00030684,2]
[325285118,1714681867670,-500.0,0.00030684,2]
[325285119,1714681867680,-500.0,0.00030684,2]
[325285120,1714681867689,-573.76,0.00030684,2]
[325285121,1714681867698,-500.0,0.00030684,2]
[325285122,1714681867707,-662.52,0.00030684,2]
[325285123,1714681867717,-1530.56,0.00030684,2]
[325285124,1714681867727,-573.06,0.00030684,2]
[325285125,1714681867735,-500.0,0.00030684,2]
[325285126,1714681867745,-558.92,0.00030684,2]
[325285127,1714681867753,-803.76,0.00030684,2]
[325285128,1714681867762,-500.0,0.00030684,2]
[325285129,1714681867771,-500.0,0.00030684,2]
[325285130,1714681867780,-500.0,0.00030684,2]
[325285131,1714681867789,-632.71,0.00030684,2]
[325285132,1714681867798,-500.0,0.00030684,2]
[325285133,1714681867807,-500.0,0.00030684,2]
[325285134,1714681867816,-500.0,0.00030684,2]
[325285135,1714681867825,-713.03,0.00030684,2]
[325285136,1714681867834,-500.0,0.00030684,2]
[325285137,1714681867844,-500.0,0.00030684,2]
[325285138,1714681867854,-1210.43,0.00030684,2]
[325285139,1714681867864,-500.0,0.00030684,2]
[325285140,1714681867872,-1281.92,0.00030684,2]
[325285141,1714681867882,-545.41,0.00030684,2]
[325285142,1714681867891,-538.98,0.00030684,2]
[325285143,1714681867899,-500.0,0.00030684,2]
[325285144,1714681867908,-934.19,0.00030684,2]
[325285145,1714681867917,-500.0,0.00030684,2]
[325285146,1714681867926,-510.97,0.00030684,2]
[325285147,1714681867935,-1013.95,0.00030684,2]
[325285148,1714681867943,-500.0,0.00030684,2]
[325285149,1714681867952,-500.0,0.00030684,2]
[325285150,1714681867961,-500.0,0.00030684,2]
[325285151,1714681867971,-500.0,0.00030684,2]
[325285152,1714681867980,-796.35,0.00030684,2]